Cogmind - Beta 14 @@@ ROGUE MODE // 2024.11.03 @ 21:36:52 Player: AnotherZach Result: Destroyed by Y-45 Defender with Heavy Assault Rifle Performance ------------- Evolutions (1) 500 Regions Visited (2) 400 Robots Destroyed (29) 145 Value Destroyed (686) 686 Prototype IDs (1) 20 Alien Tech Used (0) 0 Bonus (0) 0 TOTAL SCORE: 1751 Bonus ------- None Cogmind --------- Core Integrity 0/400 Matter 183/300 Energy 280/280 System Corruption 0% Temperature Cool (9) Movement Core (1500) Ox29 Location -9/Materials Parts ------- > --- POWER (1) -------- Cooled Ion Engine > --- PROPULSION (3) --- (None) > --- UTILITY (3) ------ Huge Storage Unit Advanced Targeting Computer > --- WEAPON (2) ------- (None) > --- INVENTORY (25) --- Ion Engine Cooled Ion Engine Aluminum Leg Aluminum Leg Aluminum Leg Titanium Leg Titanium Leg Titanium Leg Titanium Leg Heat Sink High-capacity Matter Pod (200) Seismic Detector Advanced Targeting Computer Advanced Targeting Computer Advanced Targeting Computer ECM Suite ECM Suite Core Shielding Reactive Plating Reactive Plating Reactive Plating Reactive Plating Beam Rifle Heavy Assault Rifle Heavy Assault Rifle Peak State ------------ > --- POWER ------------ Cooled Ion Engine > --- PROPULSION ------- Wheel Wheel Compact Wheel > --- UTILITY ---------- Huge Storage Unit Signal Interpreter Advanced Targeting Computer > --- WEAPON ----------- Heavy Assault Rifle Heavy Assault Rifle > --- INVENTORY -------- Ion Engine Aluminum Leg Aluminum Leg Aluminum Leg Aluminum Leg Titanium Leg Titanium Leg Titanium Leg Titanium Leg Heat Sink High-capacity Matter Pod Seismic Detector Advanced Targeting Computer Advanced Targeting Computer Advanced Targeting Computer ECM Suite ECM Suite Core Shielding Reactive Plating Reactive Plating Reactive Plating Reactive Plating Beam Rifle Heavy Assault Rifle Rocket Launcher [Rating: 20] Favorites ----------- Power Light Ion Engine Engine Light Ion Engine Propulsion Light Treads Treads Light Treads Leg Aluminum Leg Wheel Wheel Utility Huge Storage Unit Device Seismic Detector Storage Huge Storage Unit Processor Improved Targeting Computer Protection Light Armor Plating Weapon Heavy Assault Rifle Energy Gun Beam Rifle Ballistic Gun Heavy Assault Rifle Launcher Rocket Launcher Build | -11 -10 -9 ------- Run | Yrd Mat Mat Slots Evolved 2 | . . 2 Power . | . . . Propulsion 1 | . . 1 Utility 1 | . . 1 Weapon . | . . . Parts Attached 28 | 5 . 23 Power 2 | . . 2 Engine 2 | . . 2 Core . | . . . Reactor . | . . . Propulsion 9 | 2 . 7 Treads 3 | 2 . 1 Leg 2 | . . 2 Wheel 4 | . . 4 Hover . | . . . Flight . | . . . Utility 8 | 1 . 7 Device 2 | 1 . 1 Storage 1 | . . 1 Processor 4 | . . 4 Hackware . | . . . Protection 1 | . . 1 Artifact . | . . . Weapon 9 | 2 . 7 Energy Gun 1 | . . 1 Energy Cannon . | . . . Ballistic Gun 6 | 2 . 4 Ballistic Cannon . | . . . Launcher 2 | . . 2 Special Weapon . | . . . Impact Weapon . | . . . Slashing Weapon . | . . . Piercing Weapon . | . . . Special Melee Weapon . | . . . Unidentified Prototypes 1 | . . 1 Parts Lost 10 | . 1 9 Power . | . . . Propulsion 5 | . . 5 Utility 3 | . 1 2 Weapon 2 | . . 2 Highest Loss Streak 6 | . 1 6 To Critical Strikes . | . . . Average Slot Usage (%) 89 | . 68 92 Engine 8 | . . 10 Treads 11 | . 28 8 Leg 3 | . . 3 Wheel 16 | . . 18 Device 1 | . 11 . Storage 7 | . . 8 Processor 16 | . . 18 Protection 1 | . . 2 Energy Gun 3 | . . 4 Ballistic Gun 16 | . 28 15 Launcher 1 | . . 2 Peak Build Rating 20 | 5 5 20 Average Rating 11 | 3 4 13 On Entrance 3 | . 5 4 Naked Turns . | . . . Heaviest Build 94 | 3 3 94 Greatest Support 40 | 3 3 40 Greatest Overweight (x) 8 | . . 8 Average Overweight (x) 1 | . . 1 Largest Inventory Capacity 25 | 5 5 25 Average Capacity 17 | 5 5 21 Most Carried 25 | 5 5 25 Average Carried 11 | 2 5 13 Final Capacity 25 | 5 5 25 Final Carried 25 | 5 5 25 Class Distribution -------------------- 63% | Scavenger-Mutant 36% | Mutant Dominant Class ---------------- Mutant | -10/Materials Scavenger-Mutant | -9/Materials Resources | -11 -10 -9 ----------- Run | Yrd Mat Mat Matter Collected 792 | 238 . 554 Remotely . | . . . Salvage Created 1022 | 72 . 950 Parts 58 | 10 . 48 Haulers Intercepted 2 | . . 2 Recyclers Shooed 3 | 1 . 2 Parts Field Recycled . | . . . Retrieved Matter . | . . . Parts Self-Destructed . | . . . Prevented . | . . . Kills | -11 -10 -9 ------- Run | Yrd Mat Mat Combat Hostiles Destroyed 15 | . . 15 Guns 7 | . . 7 AOE 8 | . . 8 Classes Destroyed 10 | 1 . 9 Worker 4 | . . 4 Tunneler 4 | 4 . . Hauler 2 | . . 2 Recycler 2 | . . 2 Operator 1 | . . 1 Watcher 1 | . . 1 Grunt 7 | . . 7 Brawler 1 | . . 1 Duelist 2 | . . 2 Sentry 5 | . . 5 Best Kill Streak 10 | 3 . 10 Combat Bots Only 8 | . . 8 Max Kills in Single Turn 3 | 1 . 3 Gunslinging . | . . . Exploded 3 | . . 3 Melee . | . . . Uniques/NPCs Destroyed . | . . . Combat | -11 -10 -9 -------- Run | Yrd Mat Mat Hostile Shots Fired 120 | . 22 98 Missed 32 | . 7 25 Damage Taken 1541 | . 208 1333 Core 437 | . 21 416 Absorbed by Shields . | . . . Core Remaining (%) 95 | 100 91 . Volleys Fired 84 | 15 . 69 Largest 2 | 2 . 2 Hottest 79 | 40 . 79 Shots Fired 146 | 30 . 116 Gun 137 | 30 . 107 Cannon . | . . . Launcher 9 | . . 9 Special . | . . . Kinetic 103 | 30 . 73 Thermal 34 | . . 34 Explosive 9 | . . 9 Electromagnetic . | . . . Robot Hit Streak 18 | 6 . 18 Robot Miss Streak 4 | 2 . 4 Penetration Max . | . . . Secondary Targets . | . . . Shots Hit Robots 108 | 20 . 88 Core Hits 54 | 9 1 44 Critical Kills . | . . . Critical Parts Destroyed . | . . . Critical Strikes 4 | . . 4 Burn 4 | . . 4 Melee Attacks . | . . . Impact . | . . . Slashing . | . . . Piercing . | . . . Sneak Attacks . | . . . Combat Hostiles . | . . . Follow-up Attacks . | . . . Damage Inflicted 2083 | 161 48 1874 Guns 1386 | 161 . 1225 Cannons . | . . . Explosions 649 | . . 649 Melee . | . . . Ramming 48 | . 48 . Kinetic 924 | 161 . 763 Thermal 462 | . . 462 Explosive 649 | . . 649 Electromagnetic . | . . . Impact . | . . . Slashing . | . . . Piercing . | . . . Highest Corruption . | . . . Average Corruption . | . . . Corruption Purged . | . . . Corruption Blocked . | . . . Overload Shots . | . . . Overflow Damage 7 | . . 7 Projectiles . | . . . Explosions 7 | . . 7 Melee . | . . . Knockbacks . | . . . Impact . | . . . Kinetic . | . . . Secondary . | . . . Self-Inflicted Damage 202 | . 19 183 Shots 6 | . . 6 Rammed 13 | . 13 . Targets Rammed 13 | . 13 . Kicked . | . . . Crushed . | . . . Highest Temperature 123 | . . 123 Average Temperature 38 | . . 38 Received Heat Transfer 504 | . 99 405 Siege Activations . | . . . Robots Corrupted . | . . . Combat Hostiles . | . . . Parts Fried . | . . . Impact Corruptions . | . . . Robots Melted . | . . . Combat Hostiles . | . . . Parts Melted 6 | . . 6 Heat Transferred 1480 | . . 1480 Parts Sabotaged . | . . . Parts Stolen . | . . . Parts Stripped . | . . . Power Chain Reactions . | . . . Alert | -11 -10 -9 ------- Run | Yrd Mat Mat Peak Influence 262 | 20 75 262 Initial 31 | . 13 31 Average 60 | 6 40 69 Maximum Alert Level 1 | . . 1 Low Security (%) 99 | 100 100 99 Level 1 . | . . . Level 2 . | . . . Level 3 . | . . . Level 4 . | . . . Level 5 . | . . . High Security . | . . . Max Security . | . . . Squads Dispatched 4 | . 3 1 Investigation 2 | . 2 . Extermination . | . . . Reinforcement 2 | . 1 1 Assault . | . . . Garrison . | . . . Intercept . | . . . Searches Triggered . | . . . Construction Impeded . | . . . Haulers Reinforced . | . . . Active Scanning Responses . | . . . Cargo Convoy Interrupts . | . . . Stealth | -11 -10 -9 --------- Run | Yrd Mat Mat Distress Signals 4 | . . 4 Communications Jammed . | . . . Distress Signals . | . . . Times Spotted 40 | . 16 24 Peak Tracking Total 12 | . 12 10 Tactical Retreats 1 | . 1 . Traps | -11 -10 -9 ------- Run | Yrd Mat Mat Traps Triggered 2 | . . 2 Indirectly . | . . . Trap Hack Attempts . | . . . Triggered . | . . . Disarmed . | . . . Reprogrammed . | . . . Reused . | . . . Traps Extracted . | . . . Installed . | . . . Triggered . | . . . Machines | -11 -10 -9 ---------- Run | Yrd Mat Mat Machines Disabled . | . . . Max in Single Turn . | . . . Machines Repaired . | . . . Machines Dismantled . | . . . Machines Sabotaged . | . . . Overloaded Fab Kills . | . . . Hacking | -11 -10 -9 --------- Run | Yrd Mat Mat Machines Accessed 6 | . 2 4 Terminals 4 | . 1 3 Fabricators . | . . . Repair Stations . | . . . Recycling Units 2 | . 1 1 Scanalyzers . | . . . Garrison Access . | . . . Total Hacks 19 | . 5 14 Successful 9 | . 3 6 Failed 10 | . 2 8 Catastrophic 3 | . 1 2 Database Lockouts . | . . . Manual 14 | . 5 9 Terminals 16 | . 4 12 Fabricators . | . . . Repair Stations . | . . . Recycling Units 3 | . 1 2 Scanalyzers . | . . . Garrison Access . | . . . Terminal Hacks 2 | . 1 1 Robot Schematic 1 | . 1 . Unreport Threat 1 | . . 1 Fabricator Hacks . | . . . Repair Station Hacks . | . . . Recycling Unit Hacks 2 | . . 2 Process 1 | . . 1 Retrieve Matter 1 | . . 1 Scanalyzer . | . . . Garrison Access Hacks . | . . . Unauthorized Hacks 5 | . 2 3 Terminals 4 | . 1 3 Track 1 | . . 1 Botnet 2 | . 1 1 Skim 1 | . . 1 Fabricators . | . . . Repair Stations . | . . . Recycling Units 1 | . 1 . Tunnel 1 | . 1 . Scanalyzers . | . . . Garrison Access . | . . . Data Cores Recovered . | . . . Used . | . . . Hacking Detections 4 | . 1 3 Full Trace Events 1 | . 1 . Feedback Events . | . . . Feedback Blocked . | . . . Robot Schematics Acquired 1 | . 1 . Robots Built . | . . . Authchips . | . . . Time . | . . . Total Robot Build Rating . | . . . Part Schematics Acquired . | . . . Parts Built . | . . . Authchips . | . . . Time . | . . . Total Part Build Rating . | . . . Parts Repaired . | . . . Time . | . . . Parts Recycled . | . . . Recycled Matter 87 | . . 87 Retrieved Matter 87 | . . 87 Retrieved Components . | . . . Parts Scanalyzed . | . . . Part Schematics Acquired . | . . . Parts Damaged . | . . . Bothacking | -11 -10 -9 ------------ Run | Yrd Mat Mat Used RIF Installer . | . . . Robots Hacked . | . . . Non-combat . | . . . Combat . | . . . Robot Hacks Applied . | . . . Relay Couplers Released . | . . . Fabnet Peak Effective % . | . . . Robots Rewired . | . . . Allies Hacked . | . . . Hacks Repelled . | . . . Allies | -11 -10 -9 -------- Run | Yrd Mat Mat Total Allies . | . . . Largest Group . | . . . Highest-Rated Group . | . . . Highest-Rated Ally . | . . . Total Orders . | . . . Ally Attacks . | . . . Total Damage . | . . . Kills . | . . . Allies Corrupted . | . . . Allies Melted . | . . . Intel | -11 -10 -9 ------- Run | Yrd Mat Mat Robot Analysis Total . | . . . Derelict Logs Recovered . | . . . Drone Launches . | . . . Drone Recoveries . | . . . Exploration | -11 -10 -9 ------------- Run | Yrd Mat Mat Turns Passed 892 | 82 100 710 Spaces Moved 583 | 61 165 357 Core 301 | 61 165 75 Treads 33 | . . 33 Legs 4 | . . 4 Wheels 245 | . . 245 Hover . | . . . Flight . | . . . Fastest Speed 50 | 50 50 50 Average Speed 95 | 50 50 124 Slowest Speed 400 | 50 50 400 Overloaded Moves . | . . . Propulsion Burnouts . | . . . Robots Hopped . | . . . Cave-ins Triggered . | . . . Exploration Rate (%) 25 | 4 36 37 Regions Visited 2 Branch Regions . Pre-discovered Areas 1 | . 1 . Known Exits Taken . | . . . Unknown Exits Taken 2 | 1 1 . Scrap Searched . | . . . Spaces Dug 18 | . . 18 Terrain Destroyed 44 | . . 44 Melee . | . . . Projectile . | . . . AOE 44 | . . 44 Terrain Rammed . | . . . Walls Destroyed . | . . . Machines Disabled . | . . . Actions | -11 -10 -9 --------- Run | Yrd Mat Mat Total 773 | 85 183 505 Wait 19 | . . 19 Move 581 | 60 164 357 Hop . | . . . Pick Up 37 | 5 3 29 Fast Attach 13 | 5 . 8 Attach 5 | . . 5 Detach . | . . . Swap 10 | . . 10 Drop 11 | . 3 8 Fire 84 | 15 . 69 Melee . | . . . Ram 13 | . 13 . Kick . | . . . Crush . | . . . Escape Stasis . | . . . Rewire . | . . . Trap . | . . . Miscellaneous . | . . . Route ------- -11/Scrapyard -10/Materials -9/Materials (discovered 1 exit: *Min) History --------- Turn | Location | Event 7 | -11/Scrapyard | Discovered new exit (range 15) 83 | -11/Scrapyard | Entered Materials 173 | -10/Materials | Discovered new exit (range 12) 183 | -10/Materials | Entered another Materials area 183 | -9/Materials | Evolved 2 slots: Propulsion x1, Utility x1 204 | -9/Materials | Discovered new exit (range 14) 569 | -9/Materials | Identified exit to Mines 740 | -9/Materials | Build established: Scavenger-Mutant 870 | -9/Materials | Core integrity fell below 50% 882 | -9/Materials | Core integrity fell below 20% 893 | -9/Materials | Destroyed by Y-45 Defender with Heavy Assault Rifle Last Messages --------------- 00878_ G-47 Trooper destroyed. 00878_ G-34 Mercenary destroyed. 00879_ Wheel destroyed. 00881_ B-36 Bruiser destroyed. 00881_ G-34 Mercenary destroyed. 00881_ Hvy. Assault Rifle destroyed. 00881_ Destroyed Hvy. Assault Rifle. 00882_ Critical hit (Burn: +37). 00882_ Wheel destroyed. 00884_ A-02 Transporter destroyed. 00884_ Com. Wheel destroyed. 00884_ Signal Interpreter destroyed. 00885_ The unstable cave ceiling collapses. 00885_ Med. Storage Unit crushed. 00888_ L-31 Rogue destroyed. 00889_ R-06 Scavenger collects Aluminum Leg. 00890_ Y-45 Defender destroyed. 00892_ R-06 Scavenger destroyed. 00892_ U-05 Engineer lays Concrete. 00893_ Rocket Launcher destroyed. Map ----- +----------------------------------------------------+ | #????????# #### # ?????????????????????? | | #????+ # #### # ?????????????????????? | | #????##### # %!!! / #? ????????????????????? | | #????????# " # ! # #? ????????????????????? | | #????????#"%"# # #?? ???????????????????? | | #????????# "?# [ # #??????????????????????? | | ##????????# / # #??????????????????????? | | ??????????# # # ##########??""?????????? | | ??????????# ######## ## #?"""?????????? | | ?????????# ####### ## # ""?????????? | | ??????? # """?????????? | | ??????? + "" ?????????? | | ??????? #?????????????? | | ???????### #######/## #?????????????? | | ?????????###????????? # #?????????????? | | ????????????????????k ## ##???!?????????? | | ???????????????????! """?# ##+# #???????? | | ??????????????????? Y"## #???????? | | ?????????????????? """ ???????? | | ?????????????????#% %= ???????? | | ?????????????????###+## %* =[ ???????? | | ??????????????????????# Y = ??????? | | ??????????????????????# * [ #???????? | | ?????????????????????## [[[ #???????? | | ???????????????????# # [ #???????? | | ???????????????????# ^ @[ = #???????? | | ???????????????????# ^ #???????? | | ???????????????????# #???????? | | ????????????????? u ^ #???????? | | ????????????????## #########+##### ##???????? | | ?????????????????#???????????????? ???????? | | ??????????????????????????????????? =??????? | | ???????????????????????????????????? ???????? | | ??????????????????????????????????????????????? | | ??????????????????????????????????????????????? | | ??????????????????????????????????????????????? | | ??????????????????????????????????????????????? | | ??????????????????????????????????????????????? | | ??????????????????????????????????????????????? | | ??????????????????????????????????????????????? | | ??????????????????????????????????????????????? | | ??????????????????????????????????????????????? | | ??????????????????????????????????????????????? | | ??????????????????????????????????????????????? | | ??????????????????????????????????????????????? | | ??????????????????????????????????????????????? | | ??????????????????????????????????????????????? | | ??????????????????????????????????????????????? | | ??????????????????????????????????????????????? | | ??????????????????????????????????????????????? | +----------------------------------------------------+ Best States ------------- Heat Dissipation 38 Energy Generation 14 Energy Capacity 280 Matter Stores 300 Matter Capacity 300 Sight Range 16 Terrain Scan Density 85 Armor Coverage 150 Evasion (%) 50 Targeting Accuracy 8 Recoil Reduction 2 Item Schematics ----------------- None Robot Schematics ------------------ M-13 Machinist | -10/Materials | Hacked Fabricated ------------ Nothing Alien Tech Used ----------------- None Achievements -------------- None Challenges ------------ None Game ------ Seed CryofiberBombImmobilizer Manual? 0 Play Time 00:12:22 Cumulative 702.5 hours Start 2024.11.03 @ 21:27:07 End 2024.11.03 @ 21:36:52 Sessions 1 Manual Loads 0 Difficulty Rogue Special Mode None Game No. 151 Rogue 13 Adventurer 138 Explorer 0 Win Type - Total 11 Types 7/0/1/2/0/0/0/0/1 Lore% 78 Gallery% 84 Achievement% 76 Wizard Run 0 Options --------- Layout 1 ASCII 0 Keyboard 0 Movement Mouse Keybinds 0 Fullscreen 0 Font 18/SmallcapsGlow Map View 59x46 Zoom Use 0% Tactical HUD 1 Map Filters NONE Filters NONE Steam 1 RUN: a8de60ce-8cef-457a-81bb-2f14e18a3c49